{"text_format":"2","workbook":"xlsx","n_sheets":2,"sheets":["Főösszesítő","Munka1"],"not_rendered":{"charts":0,"images":0,"macros":0,"external_links":0,"defined_names":0,"comments":0,"pivot_tables":0},"unopened":[],"bounds":{"document_bytes":16777216,"sheet_cells":100000,"run_cost":"one","rows_first":2000,"rows_last":500,"rows_between":2000,"halvings":0,"cell_chars":16384,"cell_head_chars":4096},"cells_cut":0,"cells_raw":0,"read":"whole","date_system":"1900"}

{"sheet":"Főösszesítő","index":0,"n_rows":17,"n_cols":4,"rows_kept":17,"cut":false,"hidden":false,"merged":[[4,0,4,3],[16,1,16,2],[1,0,1,3]]}
[]
["SZTE Bajai Obszervatóriuma Baja, Szegedi út III/70. szám alatt, melléképület tetőfedés javítása."]
[]
[]
["Költségvetés főösszesítő"]
["Megnevezés",null,"Anyagköltség","Díjköltség"]
["1. Építmény közvetlen költségei",null,{"$f":"Munka1!G17","v":0},{"$f":"Munka1!H17","v":0}]
["1.1 Közvetlen önköltség összesen"]
["2.1 Anyag + díj",null,null,{"$f":"(C7+D7)","v":0}]
["2.2 Tartalékkeret ",0.05,null,{"$f":"(D9*0.05)","v":0}]
["2.1 ÁFA vetítési alap",null,null,{"$f":"(D9+D10)","v":0}]
["2.2 Áfa",0.27,null,{"$f":"(D11*0.27)","v":0}]
["3.  A munka ára",null,null,{"$f":"(D11+D12)","v":0}]
[]
[]
[]
[null,"Aláírás"]

{"sheet":"Munka1","index":1,"n_rows":17,"n_cols":8,"rows_kept":17,"cut":false,"hidden":false,"merged":[]}
["Ssz.","Tétel szövege","Menny.","Egység","Anyag egységár","Díj egységre","Anyag összesen","Díj összesen"]
[1,"Tetőfedés bontása",82.06,"m2     ",0,0,{"$f":"ROUND(C2*E2, 0)","v":0},{"$f":"ROUND(C2*F2, 0)","v":0}]
[2,"Tetőlécezés bontása",82.06,"m2     ",0,0,{"$f":"ROUND(C3*E3, 0)","v":0},{"$f":"ROUND(C3*F3, 0)","v":0}]
[3,"Tetőgerendák bontása",82.06,"m2     ",0,0,0,0]
[4,"Sérült mozgó falazat bontása",12.4,"m2     ",0,0,0,0]
[5,"Teherhordó falazat készítése 20 cm vtg. ban.",12.4,"m2     ",0,0,0,0]
[6,"Koszorú zsaluzat készítése",16.54,"m2     ",0,0,0,0]
[7,"Betonacél szerelés",0.7,"t",0,0,0,0]
[8,"Vasbeton koszorú készítése C16-16/kk betonból",2.48,"m3     ",0,0,0,0]
[9,"Tetőszerkezet készítése 7,5x15,0 cm szarufákkal, 15,0X15,0 cm szelemenekkel",82.06,"m2     ",0,0,0,0]
[10,"Páraáteresztő fólia elhelyezése ellenlécezéssel. ",82.06,"m2     ",0,0,0,0]
[11,"Tetőlécezés készítése normál tetőléccel",82.06,"m2     ",0,0,0,0]
[12,"Tetőfedés készítése barna színű trapézlemezzel",82.06,"m2     ",0,0,0,0]
[13,"Ereszcsatorna és lefolyócső szerelése horganyzott acélbó csatorna tartó vasakkal",15.5,"fm",0,0,0,0]
[14,"Homlokzat vakolat készítése új és régi tégla felületen felületen",20,"m2     ",0,0,0,0]
[15,"Bontott anyagok kezelése, elszállítása",5,"m3     ",0,0,0,0]
[null,"Munkanem összesen:",{"$nulls":4},{"$f":"ROUND(SUM(G2:G16),0)","v":0},{"$f":"ROUND(SUM(H2:H16),0)","v":0}]